Cogmind - Beta 13 @@@ ROGUE MODE // 2024.05.01 @ 18:41:22 Player: BionicBot Result: Destroyed by S-27 Virus with Autogun Performance ------------- Evolutions (3) 1500 Regions Visited (8) 1600 Robots Destroyed (72) 360 Value Destroyed (2072) 2072 Prototype IDs (9) 180 Alien Tech Used (0) 0 Bonus (607) 607 TOTAL SCORE: 6319 Bonus ------- High Alert Combat Kills 88 Follower Combat Kills 347 Aligned with FarCom 300 Friendly Fire -128 Cogmind --------- Core Integrity 0/700 Matter 28/300 Energy 99/100 System Corruption 7% Temperature Warm (175) Movement Core (50) Location -7/Lower Caves Parts ------- > --- POWER (1) -------- (None) > --- PROPULSION (4) --- (None) > --- UTILITY (6) ------ (None) > --- WEAPON (2) ------- (None) > --- INVENTORY (5) ---- Compact Battery (200) Improved Utility Shielding Recalibrator Gauss Cannon Field Lobotomy Kit (4) Peak State ------------ > --- POWER ------------ Deuterium Engine > --- PROPULSION ------- Light Treads Light Treads Armored Treads Advanced Treads > --- UTILITY ---------- Medium Storage Unit Trap Scanner Advanced Visual Processing Unit Hacking Suite System Shield Drone Bay > --- WEAPON ----------- Heavy Ion Cannon Precision Assault Rifle > --- INVENTORY -------- Light Treads Compact Battery ECM Suite Improved Utility Shielding Insulated Plating Recalibrator Gauss Rifle Assault Cannon Advanced EMP Blaster Field Lobotomy Kit [Rating: 41] Favorites ----------- Power Deuterium Engine Engine Deuterium Engine Propulsion Light Treads Treads Light Treads Leg Aluminum Leg Hover Unit Airjet Utility Medium Storage Unit Device Trap Scanner Storage Medium Storage Unit Processor Advanced Visual Processing Unit Hackware System Shield Protection Hardened Medium Armor Plating Weapon Heavy Ion Cannon Energy Gun Medium Laser Energy Cannon Heavy Ion Cannon Ballistic Gun Light Assault Rifle Ballistic Cannon Assault Cannon Launcher Advanced EMP Blaster Special Weapon Field Lobotomy Kit Build | -11 -10 -10 -10 -9 -8 -8 -7 -7 ------- Run | Yrd Mat Min Exi Min Mat Sto Fac Low Slots Evolved 6 | . . . . . 4 . 2 . Power . | . . . . . . . . . Propulsion 2 | . . . . . 2 . . . Utility 4 | . . . . . 2 . 2 . Weapon . | . . . . . . . . . Parts Attached 73 | 7 6 . 3 2 23 13 19 . Power 8 | 1 2 . . . 3 . 2 . Engine 8 | 1 2 . . . 3 . 2 . Core . | . . . . . . . . . Reactor . | . . . . . . . . . Propulsion 17 | 2 1 . . . 4 4 6 . Treads 9 | . . . . . 3 4 2 . Leg 7 | 2 1 . . . . . 4 . Wheel . | . . . . . . . . . Hover 1 | . . . . . 1 . . . Flight . | . . . . . . . . . Utility 20 | 2 1 . . . 10 3 4 . Device 5 | 1 . . . . 2 . 2 . Storage 7 | 1 1 . . . 3 2 . . Processor 2 | . . . . . 2 . . . Hackware 2 | . . . . . 1 1 . . Protection 4 | . . . . . 2 . 2 . Artifact . | . . . . . . . . . Weapon 28 | 2 2 . 3 2 6 6 7 . Energy Gun 8 | 2 1 . 1 1 1 2 . . Energy Cannon 3 | . . . . . 2 1 . . Ballistic Gun 9 | . 1 . 1 1 2 1 3 . Ballistic Cannon 4 | . . . . . . 2 2 . Launcher 2 | . . . . . . . 2 . Special Weapon 2 | . . . 1 . 1 . . . Impact Weapon . | . . . . . . . . . Slashing Weapon . | . . . . . . . . . Piercing Weapon . | . . . . . . . . . Special Melee Weapon . | . . . . . . . . . Unidentified Prototypes 5 | . . . 1 . . 2 2 . Parts Lost 20 | . 3 . . . 6 . 11 . Power 1 | . . . . . . . 1 . Propulsion 8 | . 1 . . . 3 . 4 . Utility 6 | . . . . . 2 . 4 . Weapon 5 | . 2 . . . 1 . 2 . Highest Loss Streak 6 | . 2 . . . 3 . 6 . To Critical Strikes . | . . . . . . . . . Average Slot Usage (%) 85 | . 90 85 84 85 76 95 89 10 Engine 8 | . 14 14 14 14 9 9 4 . Treads 15 | . . . . . 15 32 20 . Leg 9 | . 25 28 28 28 3 . 4 3 Device 4 | . 8 . . . . . 11 1 Storage 12 | . 14 14 14 14 15 17 7 1 Processor 4 | . . . . . 5 9 7 1 Hackware 6 | . . . . . 4 9 12 1 Protection 1 | . . . . . 2 . 2 . Energy Gun 7 | . 22 14 13 14 9 3 . . Energy Cannon 3 | . . . . . 3 8 4 . Ballistic Gun 3 | . 5 14 5 2 5 . 2 1 Ballistic Cannon 2 | . . . . . . 5 4 . Special Weapon 1 | . . . 8 11 . . . . Naked Turns 102 | . . . . . . . . 102 Heaviest Build 40 | 13 20 16 23 24 31 33 40 22 Greatest Support 82 | 20 20 20 20 20 60 80 82 45 Greatest Overweight (x) 9 | 1 1 . 1 1 7 . 9 . Average Overweight (x) . | . . . . . . . . . Largest Inventory Capacity 10 | 8 10 10 10 10 10 10 10 10 Average Capacity 9 | 7 9 10 10 10 10 10 10 6 Most Carried 10 | 5 9 9 10 10 10 10 10 7 Average Carried 8 | 4 7 9 9 9 9 9 8 5 Final Capacity 10 | 8 10 10 10 10 10 10 10 5 Final Carried 10 | 5 9 9 10 9 10 10 7 5 Class Distribution -------------------- 59% | Mutant 13% | Hacker-Skirmisher 10% | Skirmisher 7% | Scavenger-Skirmisher 7% | Commander-Mutant Dominant Class ---------------- Mutant | -10/Materials Mutant | -10/Mines Mutant | -10/Exiles Mutant | -9/Mines Mutant | -8/Materials Mutant | -8/Storage Hacker-Skirmisher | -7/Factory Mutant | -7/Lower Caves Resources | -11 -10 -10 -10 -9 -8 -8 -7 -7 ----------- Run | Yrd Mat Min Exi Min Mat Sto Fac Low Matter Collected 1090 | 260 135 . . 75 241 168 211 . Remotely . | . . . . . . . . . Salvage Created 2608 | 192 349 . . . 437 747 883 . Parts 129 | 5 22 . . . 17 37 48 . Haulers Intercepted 4 | . . . . . . 2 2 . Recyclers Shooed 4 | . . . . . 1 1 2 . Parts Field Recycled . | . . . . . . . . . Retrieved Matter . | . . . . . . . . . Parts Self-Destructed . | . . . . . . . . . Prevented . | . . . . . . . . . Kills | -11 -10 -10 -10 -9 -8 -8 -7 -7 ------- Run | Yrd Mat Min Exi Min Mat Sto Fac Low Combat Hostiles Destroyed 45 | . 10 . . . 9 9 17 . Guns 16 | . 10 . . . 6 . . . Cannons 21 | . . . . . 2 9 10 . AOE 8 | . . . . . 1 . 7 . Classes Destroyed 12 | 3 3 . . . 2 3 1 . Worker 4 | 1 . . . . . 1 2 . Builder 5 | . . . . . . 1 4 . Tunneler 3 | 3 . . . . . . . . Hauler 4 | . . . . . . 2 2 . Recycler 4 | 1 . . . . . 2 1 . Operator 1 | . . . . . . 1 . . Watcher 5 | . 1 . . . 2 . 2 . Swarmer 11 | . 3 . . . 3 . 5 . Grunt 18 | . 7 . . . . 3 8 . Sentry 12 | . . . . . 4 7 1 . Hunter 2 | . . . . . 2 . . . Programmer 3 | . . . . . . . 3 . Best Kill Streak 7 | 2 3 . . . 3 3 7 . Combat Bots Only 5 | . 3 . . . 3 2 5 . Max Kills in Single Turn 7 | 2 1 . . . 1 1 7 . Gunslinging . | . . . . . . . . . Exploded 3 | . . . . . 1 . 3 . Melee . | . . . . . . . . . Uniques/NPCs Destroyed . | . . . . . . . . . Combat | -11 -10 -10 -10 -9 -8 -8 -7 -7 -------- Run | Yrd Mat Min Exi Min Mat Sto Fac Low Hostile Shots Fired 467 | . 72 . . 3 72 32 247 41 Missed 154 | . 17 . . 3 18 14 84 18 Damage Taken 4474 | . 574 . . . 740 329 2490 341 Core 987 | . 150 . . . 116 15 384 322 Absorbed by Shields . | . . . . . . . . . Ignored by Resistances 51 | . . . . . . . 51 . Regen/Repaired (Parts) 82 | . . . . . . . 82 . Core Remaining (%) 72 | 100 . . . 40 . 76 . . Volleys Fired 195 | 16 45 . . 1 47 33 53 . Largest 2 | 2 2 . . 2 2 2 2 . Hottest 128 | 100 100 . . 56 128 128 109 . Shots Fired 368 | 32 80 . . 2 84 64 106 . Gun 199 | 32 80 . . 1 61 9 16 . Cannon 160 | . . . . . 23 55 82 . Launcher 8 | . . . . . . . 8 . Special 1 | . . . . 1 . . . . Kinetic 106 | . 14 . . . 14 23 55 . Thermal 234 | 32 64 . . 1 53 41 43 . Explosive . | . . . . . . . . . Electromagnetic 27 | . 2 . . . 17 . 8 . Robot Hit Streak 8 | 5 6 . . 1 8 6 7 . Robot Miss Streak 6 | 5 6 . . 1 4 5 4 . Penetration Max 1 | . . . . . . . 1 . Secondary Targets 1 | . 1 . . . . . . . Max Gunslinging Chain 1 | . 1 . . . . . . . Shots Hit Robots 196 | 17 37 . . 1 48 35 58 . Core Hits 96 | 6 19 . . . 17 18 36 . Critical Kills . | . . . . . . . . . Critical Parts Destroyed 1 | . . . . . . . 1 . Critical Strikes 12 | 2 1 . . . 5 . 4 . Burn 8 | 2 1 . . . 5 . . . Destroy 1 | . . . . . . . 1 . Blast 3 | . . . . . . . 3 . Melee Attacks . | . . . . . . . . . Impact . | . . . . . . . . . Slashing . | . . . . . . . . . Piercing . | . . . . . . . . . Sneak Attacks . | . . . . . . . . . Combat Hostiles . | . . . . . . . . . Follow-up Attacks . | . . . . . . . . . Damage Inflicted 5546 | 227 444 . . . 951 1035 2889 . Guns 1497 | 227 444 . . . 493 69 264 . Cannons 2568 | . . . . . 408 943 1217 . Explosions 1406 | . . . . . 50 . 1356 . Melee . | . . . . . . . . . Ramming 75 | . . . . . . 23 52 . Kinetic 1204 | . 23 . . . 109 266 806 . Thermal 3392 | 227 421 . . . 489 746 1509 . Explosive . | . . . . . . . . . Electromagnetic 875 | . . . . . 353 . 522 . Impact . | . . . . . . . . . Slashing . | . . . . . . . . . Piercing . | . . . . . . . . . Highest Corruption 7 | . 2 2 2 2 . 1 7 7 Average Corruption 2 | . 2 2 2 2 . 1 1 7 Corruption Purged . | . . . . . . . . . Corruption Blocked . | . . . . . . . . . Effects 53 | . 11 1 7 5 . 1 24 4 Message Errors 18 | . 3 . 1 2 . . 10 2 Matter Fused 12 | . 3 1 2 2 . . 4 . Heat Flow Errors 5 | . 1 . 1 . . . 1 2 Energy Discharges 7 | . . . 2 1 . . 4 . Parts Rejected 2 | . 1 . . . . . 1 . Data Loss (minor) 3 | . 2 . . . . 1 . . Data Loss (major) 3 | . 1 . . . . . 2 . Misfires 2 | . . . . . . . 2 . Alerts 1 | . . . 1 . . . . . Overload Shots . | . . . . . . . . . Overflow Damage 363 | . . . . . 41 4 318 . Projectiles 35 | . . . . . 23 4 8 . Explosions 328 | . . . . . 18 . 310 . Melee . | . . . . . . . . . Knockbacks 9 | . . . . . . 2 7 . Impact 1 | . . . . . . 1 . . Kinetic 8 | . . . . . . 1 7 . Secondary . | . . . . . . . . . Self-Inflicted Damage 242 | . . . . . 32 . 210 . Shots 4 | . . . . . 1 . 3 . Rammed 9 | . . . . . . 8 1 . Targets Rammed 20 | . 1 . . . . 10 9 . Kicked 9 | . 1 . . . . . 8 . Crushed 2 | . . . . . . 2 . . Highest Temperature 430 | 237 390 . 147 . 192 245 430 209 Average Temperature 95 | 100 131 . 73 . 62 55 116 121 Received Heat Transfer 1104 | . 219 . . . 108 135 606 36 Effects 2 | . 1 . . . . 1 . . Interference 1 | . . . . . . 1 . . Matter Decay 1 | . 1 . . . . . . . Siege Activations . | . . . . . . . . . Robots Corrupted . | . . . . . . . . . Combat Hostiles . | . . . . . . . . . Parts Fried 3 | . . . . . 2 . 1 . Impact Corruptions . | . . . . . . . . . Robots Melted . | . . . . . . . . . Combat Hostiles . | . . . . . . . . . Parts Melted 9 | 2 1 . . . 4 1 1 . Heat Transferred 6126 | 814 1332 . . . 1469 1073 1438 . Parts Sabotaged . | . . . . . . . . . Parts Stolen . | . . . . . . . . . Parts Stripped . | . . . . . . . . . Power Chain Reactions 4 | . . . . . 1 . 3 . Alert | -11 -10 -10 -10 -9 -8 -8 -7 -7 ------- Run | Yrd Mat Min Exi Min Mat Sto Fac Low Peak Influence 536 | 25 187 72 . . 193 536 414 . Initial 238 | . 16 72 . . . 19 238 . Average 173 | 7 79 72 . . 43 341 259 . Maximum Alert Level 2 | . . . . . . 2 2 . Low Security (%) 60 | 100 100 100 . 100 100 25 25 . Level 1 27 | . . . . . . 20 68 . Level 2 12 | . . . . . . 54 6 . Level 3 . | . . . . . . . . . Level 4 . | . . . . . . . . . Level 5 . | . . . . . . . . . High Security . | . . . . . . . . . Max Security . | . . . . . . . . . Squads Dispatched 13 | . 4 . . . 1 3 5 . Investigation 2 | . 1 . . . . 1 . . Extermination 3 | . . . . . . . 3 . Reinforcement 8 | . 3 . . . 1 2 2 . Assault . | . . . . . . . . . Garrison . | . . . . . . . . . Intercept . | . . . . . . . . . Searches Triggered . | . . . . . . . . . Construction Impeded 1 | . . . . . . . 1 . Haulers Reinforced . | . . . . . . . . . Active Scanning Responses . | . . . . . . . . . Cargo Convoy Interrupts . | . . . . . . . . . Stealth | -11 -10 -10 -10 -9 -8 -8 -7 -7 --------- Run | Yrd Mat Min Exi Min Mat Sto Fac Low Distress Signals 8 | . 1 . . . . 5 2 . Communications Jammed . | . . . . . . . . . Distress Signals . | . . . . . . . . . Times Spotted 114 | . 18 . . 2 19 31 32 12 Peak Tracking Total 8 | . 5 . . 2 4 5 8 7 Tactical Retreats 9 | . 1 . . . 1 . 3 4 Traps | -11 -10 -10 -10 -9 -8 -8 -7 -7 ------- Run | Yrd Mat Min Exi Min Mat Sto Fac Low Traps Triggered 3 | . 1 . . . . 1 1 . Indirectly 1 | . . . . . . . 1 . Trap Hack Attempts . | . . . . . . . . . Triggered . | . . . . . . . . . Disarmed 12 | . 12 . . . . . . . Reprogrammed . | . . . . . . . . . Reused . | . . . . . . . . . Traps Extracted . | . . . . . . . . . Installed . | . . . . . . . . . Triggered . | . . . . . . . . . Machines | -11 -10 -10 -10 -9 -8 -8 -7 -7 ---------- Run | Yrd Mat Min Exi Min Mat Sto Fac Low Machines Disabled 10 | . . . . . . 2 8 . Max in Single Turn 5 | . . . . . . 1 5 . Machines Repaired . | . . . . . . . . . Machines Dismantled . | . . . . . . . . . Machines Sabotaged . | . . . . . . . . . Overloaded Fab Kills . | . . . . . . . . . Hacking | -11 -10 -10 -10 -9 -8 -8 -7 -7 --------- Run | Yrd Mat Min Exi Min Mat Sto Fac Low Machines Accessed 20 | . 4 . 1 . 1 9 5 . Terminals 17 | . 4 . . . 1 9 3 . Fabricators . | . . . . . . . . . Repair Stations 2 | . . . . . . . 2 . Recycling Units . | . . . . . . . . . Scanalyzers . | . . . . . . . . . Garrison Access . | . . . . . . . . . Total Hacks 65 | . 14 . 1 . 4 26 20 . Successful 33 | . 11 . 1 . 1 10 10 . Failed 32 | . 3 . . . 3 16 10 . Catastrophic 8 | . . . . . 1 4 3 . Database Lockouts . | . . . . . . . . . Manual 13 | . 2 . 1 . . 1 9 . Terminals 58 | . 14 . . . 4 26 14 . Fabricators . | . . . . . . . . . Repair Stations 6 | . . . . . . . 6 . Recycling Units . | . . . . . . . . . Scanalyzers . | . . . . . . . . . Garrison Access . | . . . . . . . . . Terminal Hacks 29 | . 11 . 1 . 1 10 6 . Record 11 | . 5 . 1 . . 1 4 . Prototype ID Bank 2 | . . . . . . 1 1 . Open Door 4 | . . . . . . 4 . . Branch Access Points 3 | . 1 . . . 1 . 1 . Emergency Access Points 1 | . 1 . . . . . . . Unreport Threat 2 | . . . . . . 2 . . Locate Traps 2 | . 1 . . . . 1 . . Disarm Traps 2 | . 2 . . . . . . . Registered Prototypes 1 | . . . . . . 1 . . Zone Layout 1 | . 1 . . . . . . . Fabricator Hacks . | . . . . . . . . . Repair Station Hacks 4 | . . . . . . . 4 . Scan Component 2 | . . . . . . . 2 . Repair 2 | . . . . . . . 2 . Recycling Unit Hacks . | . . . . . . . . . Scanalyzer . | . . . . . . . . . Garrison Access Hacks . | . . . . . . . . . Unauthorized Hacks . | . . . . . . . . . Terminals . | . . . . . . . . . Fabricators . | . . . . . . . . . Repair Stations . | . . . . . . . . . Recycling Units . | . . . . . . . . . Scanalyzers . | . . . . . . . . . Garrison Access . | . . . . . . . . . Data Cores Recovered 1 | . . . . . . 1 . . Used 1 | . . . . . . 1 . . Hacking Detections 15 | . 2 . . . . 8 5 . Full Trace Events 2 | . 1 . . . . 1 . . Feedback Events . | . . . . . . . . . Feedback Blocked . | . . . . . . . . . Robot Schematics Acquired . | . . . . . . . . . Robots Built . | . . . . . . . . . Authchips . | . . . . . . . . . Time . | . . . . . . . . . Total Robot Build Rating . | . . . . . . . . . Part Schematics Acquired . | . . . . . . . . . Parts Built . | . . . . . . . . . Authchips . | . . . . . . . . . Time . | . . . . . . . . . Total Part Build Rating . | . . . . . . . . . Parts Repaired 2 | . . . . . . . 2 . Time 57 | . . . . . . . 57 . Parts Recycled . | . . . . . . . . . Recycled Matter . | . . . . . . . . . Retrieved Matter . | . . . . . . . . . Retrieved Components . | . . . . . . . . . Parts Scanalyzed . | . . . . . . . . . Part Schematics Acquired . | . . . . . . . . . Parts Damaged . | . . . . . . . . . Bothacking | -11 -10 -10 -10 -9 -8 -8 -7 -7 ------------ Run | Yrd Mat Min Exi Min Mat Sto Fac Low Used RIF Installer . | . . . . . . . . . Robots Hacked . | . . . . . . . . . Non-combat . | . . . . . . . . . Combat . | . . . . . . . . . Robot Hacks Applied . | . . . . . . . . . Relay Couplers Released . | . . . . . . . . . Fabnet Peak Effective % . | . . . . . . . . . Robots Rewired . | . . . . . . . . . Allies Hacked . | . . . . . . . . . Hacks Repelled . | . . . . . . . . . Allies | -11 -10 -10 -10 -9 -8 -8 -7 -7 -------- Run | Yrd Mat Min Exi Min Mat Sto Fac Low Total Allies 11 | . . . . 1 . 10 . . Largest Group 10 | . . . . 1 1 10 . . Highest-Rated Group 173 | . . . . 16 16 173 . . Highest-Rated Ally 29 | . . . . 16 16 29 . . Total Orders . | . . . . . . . . . Ally Attacks 106 | . . . . . 7 99 . . Total Damage 1334 | . . . . . 65 1269 . . Kills 17 | . . . . . . 17 . . Allies Corrupted . | . . . . . . . . . Allies Melted . | . . . . . . . . . Field Lobotomies 1 | . . . . 1 . . . . Intel | -11 -10 -10 -10 -9 -8 -8 -7 -7 ------- Run | Yrd Mat Min Exi Min Mat Sto Fac Low Robot Analysis Total . | . . . . . . . . . Derelict Logs Recovered 2 | . . . . 2 . . . . Drone Launches 2 | . . . . . . . 2 . Drone Recoveries . | . . . . . . . . . Exploration | -11 -10 -10 -10 -9 -8 -8 -7 -7 ------------- Run | Yrd Mat Min Exi Min Mat Sto Fac Low Turns Passed 6010 | 149 779 27 378 483 1155 1016 1893 130 Spaces Moved 3116 | 85 440 23 242 270 535 496 866 159 Core 179 | 27 . . . . 6 . 10 136 Treads 1615 | . . . . . 415 496 704 . Legs 1268 | 58 440 23 242 270 60 . 152 23 Wheels . | . . . . . . . . . Hover 54 | . . . . . 54 . . . Flight . | . . . . . . . . . Fastest Speed 50 | 50 120 120 120 120 120 160 120 50 Average Speed 152 | 98 131 120 153 174 169 160 164 60 Slowest Speed 500 | 120 190 120 190 190 400 162 500 120 Overloaded Moves . | . . . . . . . . . Propulsion Burnouts . | . . . . . . . . . Robots Hopped . | . . . . . . . . . Cave-ins Triggered . | . . . . . . . . . Exploration Rate (%) 39 | 4 66 9 60 67 26 78 25 18 Regions Visited 8 Branch Regions 5 Pre-discovered Areas 1 | . . . . 1 . . . . Known Exits Taken 3 | . 1 . . . 1 . 1 . Unknown Exits Taken 5 | 1 . 1 1 1 . 1 . . Scrap Searched 1 | . . . . 1 . . . . Spaces Dug 4 | . . . . . 4 . . . Terrain Destroyed 72 | . . . . . 7 10 55 . Melee . | . . . . . . . . . Projectile 21 | . . . . . 4 10 7 . AOE 51 | . . . . . 3 . 48 . Terrain Rammed . | . . . . . . . . . Walls Destroyed . | . . . . . . . . . Machines Disabled . | . . . . . . . . . Actions | -11 -10 -10 -10 -9 -8 -8 -7 -7 --------- Run | Yrd Mat Min Exi Min Mat Sto Fac Low Total 3990 | 117 562 22 249 278 696 653 1220 193 Wait 526 | . 69 . . 4 72 80 267 34 Move 3108 | 84 439 22 241 269 534 495 865 159 Hop . | . . . . . . . . . Pick Up 30 | 10 2 . 3 . 8 5 2 . Fast Attach 30 | 2 2 . . 1 10 6 9 . Attach 17 | 5 1 . 2 . 4 . 5 . Detach 7 | . . . . . 3 2 2 . Swap 26 | . 3 . 1 1 9 7 5 . Drop 31 | . . . 2 2 9 15 3 . Fire 195 | 16 45 . . 1 47 33 53 . Melee . | . . . . . . . . . Ram . | . . . . . . . . . Kick 9 | . 1 . . . . . 8 . Crush 11 | . . . . . . 10 1 . Escape Stasis . | . . . . . . . . . Rewire . | . . . . . . . . . Trap . | . . . . . . . . . Miscellaneous . | . . . . . . . . . Route ------- -11/Scrapyard -10/Materials (discovered 2 exits: [*Mat] / *Min) -10/Mines -10/Exiles -9/Mines -8/Materials -8/Storage -7/Factory (discovered 3 exits: [*Fac] / *Low x2) -7/Lower Caves History --------- Turn | Location | Event 3 | -11/Scrapyard | Discovered new exit (range 16) 150 | -11/Scrapyard | Entered Materials 302 | -10/Materials | Build established: Mutant 377 | -10/Materials | Discovered new exit (range 16) 517 | -10/Materials | Identified exit to Mines 672 | -10/Materials | Discovered new exit (range 15) 697 | -10/Materials | Core integrity fell below 50% 929 | -10/Materials | Entered Mines 950 | -10/Mines | Deemed a non-threat by the Exiles lab entrance 951 | -10/Mines | Discovered new exit (range 5) 956 | -10/Mines | Entered Exiles 985 | -10/Exiles | Met 8R-AWN 1006 | -10/Exiles | Met EX-HEX 1040 | -10/Exiles | Met EX-BIN 1055 | -10/Exiles | Aligned with FarCom system 1056 | -10/Exiles | Given EX-Vault access code 1085 | -10/Exiles | Opened EX-Vault 1098 | -10/Exiles | Found Prototype Special Weapon 1109 | -10/Exiles | Identified Field Lobotomy Kit 1144 | -10/Exiles | Warned to stay clear of 0b10 Research branches 1205 | -10/Exiles | Met EX-DEC 1310 | -10/Exiles | Discovered new exit (range 14) 1334 | -10/Exiles | Left Exiles lab with Field Lobotomy Kit 1334 | -10/Exiles | Entered Mines 1707 | -9/Mines | Assimilated G-47 Trooper with FLK Orb 1790 | -9/Mines | Received a Rocket Launcher from a helpful Derelict 1799 | -9/Mines | Learned Materials garrison access intel 1810 | -9/Mines | Discovered new exit (range 6) 1817 | -9/Mines | Entered Materials 1817 | -8/Materials | Accompanied by 1 ally 1817 | -8/Materials | Evolved 4 slots: Propulsion x2, Utility x2 1818 | -8/Materials | Loaded intel: 1 garrison access location 2208 | -8/Materials | Lost 3 parts (2n1w) 2344 | -8/Materials | Identified exit to Storage 2972 | -8/Materials | Entered Storage 3027 | -8/Storage | Assisted by bots powering up and referring to "LRC-V3" 3317 | -8/Storage | Build established: Commander-Mutant 3378 | -8/Storage | Lost 4 allies 3567 | -8/Storage | Lost 3 allies 3648 | -8/Storage | Discovered new exit (range 5) 3754 | -8/Storage | Build established: Mutant 3988 | -8/Storage | Entered Factory 3988 | -7/Factory | Evolved 2 slots: Utility x2 4276 | -7/Factory | Build established: Scavenger-Skirmisher 4318 | -7/Factory | Repaired Deuterium Engine 4584 | -7/Factory | Discovered new exit (range 11) 4738 | -7/Factory | Build established: Hacker-Skirmisher 4918 | -7/Factory | Repaired Deuterium Engine 5072 | -7/Factory | Identified exit to Lower Caves 5322 | -7/Factory | Lost 6 parts (1p2n2u1w) 5568 | -7/Factory | Build established: Skirmisher 5862 | -7/Factory | Core integrity fell below 50% 5881 | -7/Factory | Entered Lower Caves 5909 | -7/Lower Caves | Released all parts (9) 5942 | -7/Lower Caves | Core integrity fell below 20% 5989 | -7/Lower Caves | Attracted the attention of an 0b10 outpost 6011 | -7/Lower Caves | Destroyed by S-27 Virus with Autogun Last Messages --------------- 05861_ Critical hit (Burn: +37). 05861_ Carbon-fiber Leg destroyed. 05868_ The unstable cave ceiling collapses. LOCATION=LOWER CAVES GOAL=ESCAPE 05897_ P5S6TY|KM5VWX2 30N9S9FVY 05909_ Penetrated by Slug. 05909_ Released Carbon-fiber Leg. 05909_ Released Adv. EMP Blaster. 05909_ Released Prc. Assault Rifle. 05909_ Released Hacking Suite. 05909_ Released Med. Storage Unit. 05909_ Released Adv. Visual Processing Unit. 05909_ Released Trap Scanner. 05909_ Released Carbon-fiber Leg. 05967_ System corrupted: Heat flow error (+102). 05985_ U:NF|8D2:5DYG3TKKPO2Y=0